fUSD/lending_fUSD_20240914
["ID","MTS","AMOUNT","RATE_DAILY","PERIOD"]
[338172709,1726343482554,1050.0,0.00011,2]
[338172710,1726343609667,3649.58120032,0.0001277,2]
[338172711,1726343691437,448.46,0.00011304,2]
[338172712,1726343725262,150.0,0.00010959,2]
[338172713,1726343725283,5.97,0.00010959,2]
[338172715,1726344049979,150.0,0.0001263,2]
[338172716,1726344104247,150.0,0.00012617,2]
[338172717,1726344104268,150.0,0.00012617,2]
[338172718,1726344104288,89.37570313,0.00012617,2]
[338172719,1726344205731,150.0,0.00010691,2]
[338172720,1726344205755,150.0,0.00010691,2]
[338172721,1726344205776,140.77,0.00010691,2]
[338172722,1726344217600,150.0,0.00010959,2]
[338172723,1726344217620,9.07,0.00010959,2]
[338172724,1726344295093,150.0,0.00012534,2]
[338172725,1726344295114,6.7,0.00012534,2]
[338172726,1726344295408,143.3,0.00012555,2]
[338172727,1726344295429,13.4,0.00012555,2]
[338172728,1726344295578,136.6,0.00012576,2]
[338172729,1726344295601,20.1,0.00012576,2]
[338172730,1726344295770,129.9,0.00012596,2]
[338172731,1726344295790,26.8,0.00012596,2]
[338172732,1726344326586,590.06,0.00012609,2]
[338172733,1726344335746,250.0,0.00012609,2]
[338172735,1726344425415,249.72429687,0.00012523,2]
[338172736,1726344425437,0.27570313,0.00012523,2]
[338172740,1726344456188,737.6,0.00012639,2]
[338172752,1726344631788,-250.0,0.00012705,2]
[338172753,1726344631816,-1750.0,0.00012705,2]
[338172754,1726344631825,-174.666,0.0001274,2]
[338172755,1726344631834,-426.06,0.00012781,2]
[338172756,1726344631843,-250.0,0.00012803,2]
[338172757,1726344631852,-159.33,0.00012843,2]
[338172758,1726344631861,-700.1717089,0.0001287,2]
[338172759,1726344631873,-65.63748702,0.0001287,2]
[338172760,1726344631882,-282.33066373,0.0001287,2]
[338172761,1726344631892,-677.35562627,0.0001287,2]
[338172762,1726344631902,-1000.0,0.000129,3]
[338172763,1726344631911,-1000.0,0.000129,2]
[338172764,1726344631921,-1000.0,0.000129,2]
[338172765,1726344631931,-1000.0,0.000129,3]
[338172766,1726344631940,-1000.0,0.000129,2]
[338172767,1726344631950,-1000.0,0.000129,2]
[338172768,1726344631959,-1000.0,0.000129,2]
[338172769,1726344631969,-1000.0,0.000129,3]
[338172770,1726344631978,-1000.0,0.000129,2]
[338172771,1726344631988,-7500.0,0.000129,2]
[338172772,1726344631997,-620.8946,0.000129,2]
[338172773,1726344632006,-1930.1682,0.000129,2]
[338172774,1726344632016,-10215.5409,0.000129,2]
[338172775,1726344632026,-19465.8063,0.000129,2]
[338172776,1726344632035,-1000.0,0.000129,2]
[338172777,1726344632046,-153.65201141,0.000129,2]
[338172779,1726344632057,-1228.09991735,0.000129,2]
[338172781,1726344632067,-1500.0,0.00012924,2]
[338172783,1726344632076,-440.77,0.00012955,2]
[338172785,1726344632085,-150.0,0.00012985,2]
[338172787,1726344632096,-2005.73009,0.0001299,2]
[338172788,1726344632105,-500.0,0.00012999,2]
[338172789,1726344632115,-491.50379145,0.00012999,2]
[338172790,1726344632125,-500.0,0.00012999,2]
[338172791,1726344632134,-500.0,0.00012999,2]
[338172792,1726344632143,-399.61322856,0.00012999,2]
[338172793,1726344632153,-293.62627711,0.00013,2]
[338172794,1726344632169,-604.51167939,0.00013,2]
[338172795,1726344632180,-188873.02981874,0.00013,2]
[338172796,1726344632191,-404.4999995,0.00013,2]
[338172797,1726344632202,-392.16304759,0.00013,2]
[338172798,1726344632223,-1160.00238867,0.00013,2]
[338172799,1726344632234,-3282.66146261,0.00013,2]
[338172800,1726344632245,-10788.88930125,0.00013,2]
[338172801,1726344632256,-919.70999,0.00013,2]
[338172802,1726344632278,-17991.08775826,0.00013,2]
[338172803,1726344632290,-7552.79375226,0.00013,2]
[338172804,1726344632304,-355.41834579,0.00013,2]
[338172805,1726344632316,-6200.37173994,0.00013,2]
[338172809,1726344637642,-36971.8007599,0.00013,2]
[338172810,1726344637653,-1656.07732759,0.00013,2]
[338172811,1726344637664,-7418.14176777,0.00013,2]
[338172813,1726344637673,-10962.33610514,0.00013,2]
[338172814,1726344637696,-436.46324762,0.00013,2]
[338172815,1726344637802,-1682.74138119,0.00013,2]
[338172816,1726344637856,-325.88,0.00013,2]
[338172817,1726344638039,-4967.8206643,0.00013,2]
[338172818,1726344638051,-874.83664324,0.00013,2]
[338172819,1726344638066,-759.24899239,0.00013,2]
[338172820,1726344638077,-2820.66603228,0.00013,2]
[338172826,1726344639660,-245151.77995888,0.00013,2]
[338172827,1726344639721,-40424.31189806,0.00013,2]
[338172828,1726344639813,-35592.50304387,0.00013,2]
[338172829,1726344639869,-4566.05272,0.00013,2]
[338172837,1726344736618,157.91,0.00010959,2]
[338172838,1726344741231,424.4,0.00010291,2]
[338172839,1726344741447,424.4,0.00012554,2]
[338172840,1726344830084,150.0,0.000126,2]
[338172841,1726344830105,150.0,0.000126,2]
[338172842,1726344830126,150.0,0.000126,2]
[338172843,1726344830146,150.0,0.000126,2]
[338172844,1726344830166,150.0,0.000126,2]
[338172845,1726344830187,150.0,0.000126,2]
[338172846,1726344830208,150.0,0.000126,2]
[338172847,1726344830230,150.0,0.000126,2]
[338172848,1726344830250,150.0,0.000126,2]
[338172849,1726344830273,9755.1446,0.000126,2]
[338172850,1726344867601,250.0,0.00012208,2]
[338172851,1726344890086,150.0,0.00012306,2]
[338172853,1726344961517,409.92,0.00012208,2]
[338172854,1726344964070,150.0,0.00012208,2]
[338172855,1726344964095,100.0,0.00012208,2]
[338172856,1726344964126,329.67,0.00012201,2]
[338172857,1726345032587,150.0,0.00012283,2]
[338172858,1726345032607,150.0,0.00012283,2]
[338172859,1726345032628,150.0,0.00012283,2]
[338172860,1726345032649,150.0,0.00012283,2]
[338172861,1726345032669,150.0,0.00012283,2]
[338172862,1726345032690,150.0,0.00012283,2]
[338172863,1726345032710,150.0,0.00012283,2]
[338172864,1726345032729,171.7465053,0.00012283,2]
[338172865,1726345032752,278.2534947,0.00012283,2]
[338172866,1726345038200,150.0,0.00012283,2]
[338172867,1726345038225,7.91,0.00012283,2]
[338172868,1726345115892,4232.89,0.00012235,2]
[338172869,1726345163590,216.27,0.00012255,2]
[338172870,1726345167910,250.0,0.0001225,2]
[338172871,1726345275537,156.15,0.00010959,2]
[338172872,1726345287347,1050.0,0.00011,2]
[338172873,1726345358592,250.0,0.00012622,2]
[338172874,1726345382108,157.59,0.00012622,2]
[338172875,1726345382330,157.59,0.00012628,2]
[338172876,1726345382537,157.59,0.00012634,2]
[338172877,1726345382855,157.59,0.0001264,2]
[338172878,1726345394703,408.03,0.00010366,2]
[338172879,1726345394923,408.03,0.0001263,2]
[338172881,1726345457599,250.0,0.00012284,2]
[338172882,1726345485053,244.87,0.00012284,2]
[338172883,1726345537572,1500.0,0.00012428,2]
[338172884,1726345544145,672.06,0.00012428,2]
[338172885,1726345556399,300.0,6.94e-05,2]
[338172886,1726345574917,150.0,0.00012465,2]
[338172889,1726345682357,1026.614014,0.00012,2]
[338172890,1726345684843,250.0,0.00012226,2]
[338172891,1726345714609,172.23,0.0001223,2]
[338172908,1726345814221,163.15,0.00012637,2]
[338172913,1726345834295,-157.59,0.00012647,2]
[338172914,1726345834305,-157.59,0.00012653,2]
[338172915,1726345834315,-157.59,0.00012659,2]
[338172916,1726345834324,-27.23,0.00012666,2]
[338172917,1726345834335,-130.36,0.00012666,2]
[338172918,1726345834345,-157.59,0.00012672,2]
[338172919,1726345834354,-157.59,0.00012678,2]
[338172920,1726345834363,-157.59,0.00012685,2]
[338172921,1726345834373,-300.0,0.000127,4]
[338172922,1726345834382,-2079.84120738,0.0001279,2]
[338172923,1726345834393,-149.36817542,0.0001279,2]
[338172924,1726345834404,-350.62182458,0.0001279,2]
[338172925,1726345834414,-434.36339999,0.000128,4]
[338172926,1726345834426,-265.63660001,0.000128,4]
[338172927,1726345834436,-274.23202314,0.00012808,2]
[338172928,1726345834445,-323.63501485,0.00012848,2]
[338172929,1726345834456,-461.72498515,0.00012848,2]
[338172930,1726345834465,-799.73857,0.0001287,2]
[338172931,1726345834474,-158.21,0.0001287,2]
[338172932,1726345834484,-163.15,0.0001287,2]
[338172933,1726345834493,-163.15,0.0001287,2]
[338172934,1726345834502,-500.0,0.00012879,2]
[338172935,1726345834511,-500.0,0.00012879,2]
[338172936,1726345834520,-501.15147281,0.00012879,2]
[338172937,1726345834529,-150.0,0.00012879,2]
[338172938,1726345834539,-87522.77235399,0.0001288,2]
[338172939,1726345834552,-920.06431593,0.0001288,2]
[338172940,1726345834563,-30107.94981895,0.0001288,2]
[338172941,1726345834586,-3987.45282922,0.0001288,2]
[338172942,1726345834597,-432.92,0.0001288,2]
[338172943,1726345834613,-40198.917706,0.0001288,2]
[338172944,1726345834624,-1435.23226309,0.0001288,2]
[338172945,1726345834635,-812.9464343,0.0001288,2]
[338172946,1726345834646,-473290.6423117,0.0001288,2]
[338172947,1726345834656,-704.92261432,0.0001288,2]
[338172948,1726345834668,-2138.831207,0.0001288,2]
[338172949,1726345834679,-653.18224521,0.0001288,2]
[338172950,1726345834705,-3164.75000067,0.0001288,2]
[338172954,1726345837905,-9755.9910214,0.0001288,2]
[338172955,1726345837966,-1606.73102151,0.0001288,2]
[338172956,1726345837977,-3181.17244625,0.0001288,2]
[338172957,1726345838071,-1989.47898931,0.0001288,2]
[338172966,1726345840044,-2775.94000765,0.0001288,2]
[338172967,1726345840056,-1669.33501762,0.0001288,2]
[338172968,1726345840067,-559.37472043,0.0001288,2]
[338172969,1726345840079,-1046.91167268,0.0001288,2]
[338172987,1726345843141,-511.73143232,0.0001288,2]
[338172988,1726345843168,-538.67,0.0001288,2]
[338172994,1726345845861,-1539.95787899,0.0001288,2]
[338172995,1726345845873,-605.93652386,0.0001288,2]
[338172996,1726345845884,-522.01898272,0.0001288,2]
[338172997,1726345845959,-12588.6223722,0.0001288,2]
[338172999,1726345846212,-416.0689448,0.0001288,2]
[338173000,1726345846238,-41767.47880984,0.0001288,2]
[338173001,1726345846249,-343.53915486,0.0001288,2]
[338173002,1726345846260,-10467.587881,0.0001288,2]
[338173003,1726345865212,250.0,0.00012213,2]
[338173004,1726345874526,152.41,0.00010959,2]
[338173005,1726345906170,391.45,9.931e-05,2]
[338173006,1726345906371,391.45,0.00012195,2]
[338173008,1726345972677,250.0,0.00011827,2]
[338173009,1726346037384,462.35,0.00011817,2]
[338173010,1726346063401,1500.0,0.00011817,2]
[338173011,1726346139816,244.87,0.00011809,2]
[338173012,1726346314465,204.24,0.00011805,2]
[338173013,1726346333526,250.0,0.00011805,2]
[338173014,1726346363888,194.74,0.00010959,2]
[338173015,1726346400353,250.0,0.00011805,2]
[338173016,1726346426639,280.32,0.00011805,2]
[338173018,1726346473444,255.38490657,0.00012621,2]
[338173019,1726346519302,250.0,0.00011803,2]
[338173020,1726346630994,914.46,0.00011784,2]
[338173021,1726346651709,363.66,9.866e-05,2]
[338173022,1726346652146,363.66,0.0001213,2]
[338173023,1726346658744,1000.0,0.00011784,2]
[338173024,1726346666106,783.027909,0.00012615,2]
[338173026,1726346761063,156.79,0.00011788,2]
[338173034,1726346845637,300.0,0.000125,4]
[338173035,1726346847775,600.0,0.000126,4]
[338173036,1726346897982,243.76,0.00011782,2]
[338173037,1726346935469,157.76,0.00010959,2]
[338173038,1726346937393,250.0,0.00011782,2]
[338173044,1726346974280,250.0,0.0001178,2]
[338173045,1726347009843,255.38490658,0.00012621,2]
[338173049,1726347032146,-174.73,0.0001267,2]
[338173050,1726347032328,-1331.9446,0.0001268,2]
[338173051,1726347032338,-500.0,0.0001268,2]
[338173052,1726347032349,-416.9215,0.0001268,2]
[338173053,1726347032358,-1871.85708666,0.0001268,2]
[338173054,1726347032367,-1000.0,0.000127,4]
[338173055,1726347032377,-150.0,0.00012712,2]
[338173056,1726347032387,-150.0,0.00012721,2]
[338173057,1726347032398,-150.0,0.00012725,2]
[338173058,1726347032408,-150.0,0.0001273,2]
[338173059,1726347032419,-150.0,0.00012736,2]
[338173060,1726347032430,-174.73,0.0001274,2]
[338173061,1726347032439,-174.73,0.0001274,2]
[338173062,1726347032450,-150.0,0.00012742,2]
[338173063,1726347032459,-150.0,0.00012744,2]
[338173064,1726347032469,-150.0,0.00012748,2]
[338173065,1726347032478,-150.0,0.00012749,2]
[338173066,1726347032487,-150.0,0.0001275,2]
[338173067,1726347032496,-499.99,0.0001275,2]
[338173068,1726347032505,-13852.5,0.0001275,2]
[338173069,1726347032514,-789.89,0.0001275,2]
[338173070,1726347032523,-666.44881,0.0001275,2]
[338173071,1726347032532,-150.0,0.00012752,2]
[338173072,1726347032541,-150.0,0.00012753,2]
[338173073,1726347032550,-150.0,0.00012763,2]
[338173074,1726347032559,-150.0,0.00012765,2]
[338173075,1726347032568,-150.0,0.00012767,2]
[338173076,1726347032577,-174.73,0.0001277,2]
[338173077,1726347032587,-504.81878064,0.00012773,2]
[338173078,1726347032597,-150.0,0.00012776,2]
[338173079,1726347032607,-150.0,0.00012777,2]
[338173080,1726347032616,-150.0,0.00012778,2]
[338173081,1726347032625,-150.0,0.00012778,2]
[338173082,1726347032635,-156.4355,0.0001278,2]
[338173083,1726347032644,-12220.6028,0.0001278,2]
[338173084,1726347032653,-7772.9538,0.0001278,2]
[338173085,1726347032662,-162144.00411125,0.0001278,2]
[338173086,1726347032696,-588.01158738,0.0001278,2]
[338173087,1726347032730,-329.14260328,0.0001278,2]
[338173088,1726347032741,-300.0,0.0001278,2]
[338173089,1726347032792,-839.21568449,0.0001278,2]
[338173090,1726347032803,-599.63924013,0.0001278,2]
[338173091,1726347032823,-1001.07908928,0.0001278,2]
[338173094,1726347038179,-151.40766571,0.00012682,2]
[338173095,1726347038188,-1381.07693429,0.0001278,2]
[338173096,1726347038199,-2355.0,0.0001278,2]
[338173097,1726347038266,-3258.539964,0.0001278,2]
[338173098,1726347038281,-1357.22542988,0.0001278,2]
[338173099,1726347038294,-2084.0327375,0.0001278,2]
[338173100,1726347038306,-2158.98320904,0.0001278,2]
[338173101,1726347038318,-2166.78342138,0.0001278,2]
[338173102,1726347038329,-282.04696975,0.0001278,2]
[338173103,1726347038340,-566.76354058,0.0001278,2]
[338173104,1726347038351,-254.94212349,0.0001278,2]
[338173105,1726347038410,-6343.80348218,0.0001278,2]
[338173106,1726347038421,-658.8770642,0.0001278,2]
[338173107,1726347038432,-285.49172499,0.0001278,2]
[338173108,1726347038520,-983.23453998,0.0001278,2]
[338173112,1726347039986,-2242.35735466,0.0001278,2]
[338173113,1726347040043,-40256.75358827,0.0001278,2]
[338173114,1726347040051,-3098.9231,0.0001278,2]
[338173115,1726347040060,-69353.22659911,0.0001278,2]
[338173116,1726347040071,-1922.61,0.0001278,2]
[338173117,1726347040082,-662.70634916,0.0001278,2]
[338173118,1726347040092,-2954.1894928,0.0001278,2]
[338173119,1726347040104,-984.9210532,0.0001278,2]
[338173120,1726347040116,-906.6501442,0.0001278,2]
[338173121,1726347040128,-2259.09806034,0.0001278,2]
[338173122,1726347040140,-274.6470812,0.0001278,2]
[338173123,1726347040337,-630.25841339,0.0001278,2]
[338173125,1726347040348,-1561.6,0.0001278,2]
[338173127,1726347040359,-414.4410234,0.0001278,2]
[338173130,1726347040370,-2476.73398211,0.0001278,2]
[338173132,1726347040382,-505.53116172,0.0001278,2]
[338173134,1726347040395,-3408.16965506,0.0001278,2]
[338173136,1726347040406,-1345.2272652,0.0001278,2]
[338173139,1726347040418,-939.63137312,0.0001278,2]
[338173141,1726347040430,-3403.60735412,0.0001278,2]
[338173145,1726347040463,-902.16144431,0.0001278,2]
[338173147,1726347040473,-619.7594146,0.0001278,2]
[338173149,1726347040484,-514.09356733,0.0001278,2]
[338173152,1726347040495,-3147.06916563,0.0001278,2]
[338173154,1726347040504,-150.0,0.00012782,2]
[338173155,1726347040513,-150.0,0.0001279,2]
[338173157,1726347040523,-150.0,0.00012797,2]
[338173159,1726347040531,-150.0,0.00012799,2]
[338173161,1726347040542,-529.41265484,0.000128,4]
[338173163,1726347040575,-770.58734516,0.000128,4]
[338173164,1726347040791,-150.0,0.00012809,2]
[338173165,1726347040800,-150.0,0.0001281,2]
[338173166,1726347040810,-150.0,0.00012819,2]
[338173167,1726347040819,-150.0,0.00012819,2]
[338173168,1726347040828,-150.0,0.0001282,2]
[338173169,1726347040837,-150.0,0.00012822,2]
[338173170,1726347040846,-150.0,0.00012824,2]
[338173171,1726347040855,-150.0,0.00012828,2]
[338173172,1726347040864,-150.0,0.00012831,2]
[338173173,1726347040873,-150.0,0.00012832,2]
[338173174,1726347040882,-150.0,0.00012836,2]
[338173175,1726347040891,-150.0,0.00012837,2]
[338173176,1726347040900,-150.0,0.0001284,2]
[338173177,1726347040909,-150.0,0.00012841,2]
[338173178,1726347040918,-158.14098539,0.00012844,2]
[338173179,1726347040927,-150.0,0.00012845,2]
[338173180,1726347040936,-103.17166945,0.00012851,2]
[338173181,1726347040947,-1396.82833055,0.00012851,2]
[338173182,1726347040956,-150.0,0.00012855,2]
[338173183,1726347040965,-150.0,0.00012855,2]
[338173184,1726347040974,-444.42895022,0.00012856,2]
[338173199,1726347043694,-301.05407483,0.00012856,2]
[338173200,1726347043704,-150.0,0.00012856,2]
[338173201,1726347043713,-150.0,0.00012859,2]
[338173202,1726347043727,-150.0,0.00012868,2]
[338173203,1726347043738,-156.13,0.0001287,2]
[338173204,1726347043748,-500.0,0.00012873,2]
[338173205,1726347043759,-150.0,0.00012875,2]
[338173206,1726347043770,-500.0,0.00012879,2]
[338173207,1726347043780,-564.62227411,0.00012879,2]
[338173208,1726347043791,-150.0,0.00012879,2]
[338173209,1726347043800,-150.0,0.00012879,2]
[338173210,1726347043810,-2514.45480808,0.0001288,2]
[338173211,1726347043822,-1740.63,0.0001288,2]
[338173212,1726347043833,-2545.21685915,0.0001288,2]
[338173214,1726347046102,-8227.14879474,0.0001288,2]
[338173215,1726347046114,-5923.552,0.0001288,2]
[338173216,1726347046126,-49150.96274423,0.0001288,2]
[338173217,1726347046162,-904.23596,0.0001288,2]
[338173218,1726347046173,-1370.88057693,0.0001288,2]
[338173219,1726347046219,-859.59283247,0.0001288,2]
[338173220,1726347046230,-18758.912119,0.0001288,2]
[338173221,1726347046277,-349.99877428,0.0001288,2]
[338173222,1726347046288,-287.88767852,0.0001288,2]
[338173223,1726347046299,-335.451,0.0001288,2]
[338173235,1726347092062,1050.0,0.00011,2]
[338173236,1726347127613,250.0,0.00011943,2]
[338173237,1726347141872,150.0,0.00012618,2]
[338173238,1726347202225,150.0,0.00012596,2]
[338173239,1726347217471,150.0,0.00012609,2]
[338173240,1726347219108,200.0,0.00011864,2]
[338173241,1726347240016,349.74,9.948e-05,2]
[338173242,1726347240228,349.74,0.00012212,2]
[338173243,1726347261801,150.0,0.00012593,2]
[338173244,1726347261839,150.0,0.00012608,2]
[338173245,1726347261956,150.0,0.00012629,2]
[338173246,1726347262036,150.0,0.00012592,2]
[338173247,1726347262065,150.0,0.00012635,2]
[338173248,1726347265123,267.7675,0.0001258,2]
[338173249,1726347284419,154.66,0.00011866,2]
[338173250,1726347420629,185.64,0.00011855,2]
[338173251,1726347462461,250.0,0.00011863,2]
[338173252,1726347473108,250.0,0.00011863,2]
[338173253,1726347486094,151.0,0.00011866,2]
[338173254,1726347486412,237.0,0.00011866,2]
[338173255,1726347492365,154.97,0.00010959,2]
[338173256,1726347509827,256.41,9.487e-05,2]
[338173258,1726347608486,250.0,0.00011859,2]
[338173260,1726347725164,840.0,0.00011858,2]
[338173261,1726347796714,292.98,0.00011855,2]
[338173262,1726347800346,325.24,9.937e-05,2]
[338173263,1726347800575,325.24,0.00012201,2]
[338173264,1726347820423,150.0,0.00011844,2]
[338173265,1726347861811,150.0,0.00012616,2]
[338173266,1726347861851,150.0,0.00012603,2]
[338173267,1726347862143,150.0,0.00012546,2]
[338173268,1726347862174,150.0,0.00012612,2]
[338173269,1726347862210,150.0,0.00012517,2]
[338173270,1726347923019,150.0,0.00012605,2]
[338173271,1726347934405,228.51,0.00011888,2]
[338173272,1726348013879,250.0,0.00011871,2]
[338173273,1726348038777,170.92,9.485e-05,2]
[338173274,1726348076441,155.35,0.00010959,2]
[338173275,1726348163515,250.0,0.0001187,2]
[338173277,1726348189866,250.0,0.0001187,2]
[338173278,1726348223907,443.18,0.00011857,2]
[338173279,1726348232255,-150.0,0.00012651,2]
[338173280,1726348232275,-150.0,0.00012663,2]
[338173281,1726348232284,-150.0,0.00012679,2]
[338173282,1726348232293,-300.0,0.00012679,2]
[338173283,1726348232303,-35814.8882,0.0001268,2]
[338173284,1726348232312,-10011.6444,0.0001268,2]
[338173285,1726348232322,-292.5487,0.0001268,2]
[338173286,1726348232331,-2727.48655356,0.0001268,2]
[338173287,1726348232341,-150.0,0.00012681,2]
[338173288,1726348232350,-150.0,0.00012684,2]
[338173289,1726348232360,-175.76798512,0.00012691,2]
[338173290,1726348232369,-150.0,0.00012691,2]
[338173291,1726348232378,-150.0,0.00012706,2]
[338173292,1726348232387,-150.0,0.00012711,2]
[338173293,1726348232396,-150.0,0.00012718,2]
[338173294,1726348232405,-552.5,0.00012718,2]
[338173295,1726348232415,-150.0,0.00012746,2]
[338173296,1726348232424,-195.00032,0.0001275,2]
[338173297,1726348232433,-150.0,0.00012752,2]
[338173298,1726348232443,-150.0,0.00012756,2]
[338173299,1726348232452,-150.0,0.00012766,2]
[338173300,1726348232462,-150.0,0.00012779,2]
[338173301,1726348232471,-1118.4846,0.0001278,2]
[338173302,1726348232481,-32751.89462751,0.0001278,2]
[338173303,1726348232526,-17938.99365401,0.0001278,2]
[338173304,1726348232537,-460.43123519,0.0001278,2]
[338173305,1726348232548,-2844.58904,0.0001278,2]
[338173306,1726348232562,-1525.1233529,0.0001278,2]
[338173313,1726348238655,-267.7675,0.0001278,2]
[338173314,1726348240445,-2396.58360006,0.0001278,2]
[338173315,1726348240456,-1269.5776707,0.0001278,2]
[338173360,1726348243425,-3000.0206322,0.0001278,2]
[338173376,1726348246290,-535.01,0.0001278,2]
[338173393,1726348246451,-529.5997487,0.0001278,2]
[338173413,1726348255604,151.45,0.0001219,2]
[338173414,1726348262343,3390.0703,0.0001258,2]
[338173415,1726348273936,328.0,0.00012138,2]
[338173416,1726348279480,303.07,0.00010221,2]
[338173417,1726348279664,303.07,0.00012484,2]
[338173418,1726348336386,1501.56,0.00012101,2]
[338173419,1726348368378,14396.25,0.00012118,2]
[338173420,1726348397940,224.95,0.00012085,2]
[338173421,1726348461750,150.0,0.00012618,2]
[338173422,1726348516526,421.34449989,0.00012606,2]
[338173423,1726348572644,155.34132063,0.0001258,2]
[338173424,1726348579903,157.3,0.00010959,2]
[338173425,1726348583041,170.92,9.689e-05,2]
[338173426,1726348586281,250.0,0.00012112,2]
[338173427,1726348667190,250.0,0.00012104,2]
[338173429,1726348707197,500.0,0.00012606,2]
[338173430,1726348707557,500.0,0.00012606,2]
[338173431,1726348707880,500.0,0.00012606,2]
[338173432,1726348707936,200.0,0.00012606,2]
[338173433,1726348708188,500.0,0.00012606,2]
[338173434,1726348708249,200.0,0.00012606,2]
[338173435,1726348708671,500.0,0.00012606,2]
[338173436,1726348708729,200.0,0.00012606,2]
[338173437,1726348708909,500.0,0.00012606,2]
[338173438,1726348708957,200.0,0.00012606,2]
[338173439,1726348709124,500.0,0.00012606,2]
[338173440,1726348709277,251.0,0.00012606,2]
[338173441,1726348709468,500.0,0.00012606,2]
[338173442,1726348714920,500.0,0.00012606,2]
[338173443,1726348715256,500.0,0.00012606,2]
[338173444,1726348715609,500.0,0.00012606,2]
[338173445,1726348716514,500.0,0.00012606,2]
[338173446,1726348716963,500.0,0.00012606,2]
[338173447,1726348717872,500.0,0.00012606,2]
[338173448,1726348718174,500.0,0.00012606,2]
[338173449,1726348718487,500.0,0.00012606,2]
[338173450,1726348718817,500.0,0.00012606,2]
[338173451,1726348719717,500.0,0.00012606,2]
[338173452,1726348720025,500.0,0.00012606,2]
[338173453,1726348720336,500.0,0.00012606,2]
[338173454,1726348720695,500.0,0.00012606,2]
[338173455,1726348721021,500.0,0.00012606,2]
[338173456,1726348721363,500.0,0.00012606,2]
[338173457,1726348721730,500.0,0.00012606,2]
[338173458,1726348722068,500.0,0.00012606,2]
[338173459,1726348722379,500.0,0.00012606,2]
[338173460,1726348722740,500.0,0.00012606,2]
[338173461,1726348723061,500.0,0.00012606,2]
[338173462,1726348723388,500.0,0.00012606,2]
[338173463,1726348724026,500.0,0.00012606,2]
[338173464,1726348724280,500.0,0.00012606,2]
[338173465,1726348724475,500.0,0.00012606,2]
[338173466,1726348724860,500.0,0.00012606,2]
[338173467,1726348725002,500.0,0.00012606,2]
[338173468,1726348725321,500.0,0.00012606,2]
[338173469,1726348725632,500.0,0.00012606,2]
[338173470,1726348725974,500.0,0.00012606,2]
[338173471,1726348726296,500.0,0.00012606,2]
[338173472,1726348726638,500.0,0.00012606,2]
[338173473,1726348726952,500.0,0.00012606,2]
[338173474,1726348727271,500.0,0.00012606,2]
[338173475,1726348727690,500.0,0.00012606,2]
[338173476,1726348728002,500.0,0.00012606,2]
[338173477,1726348728392,500.0,0.00012606,2]
[338173478,1726348728852,500.0,0.00012606,2]